[Event "Titled Tuesday Blitz May 9 Early 2023"]
[White "Andreev, Konstantin"]
[Black "Sethuraman, S.P."]
[WhiteFideId "24239305"]
[BlackFideId "5021596"]
[WhiteElo "2106"]
[BlackElo "2543"]
[Result "0-1"]
[Round "07"]
[TimeControl "180+2"]
[Date "2023.05.09"]
[WhiteClock "0:00:08"]
[BlackClock "0:00:15"]

1. e4 {[%clk 0:02:52]}  g6 {[%clk 0:02:59]} 2. d4 {[%clk 0:02:51]}  Bg7 {[%clk 0:03:00]} 3. Nc3 {[%clk 0:02:50]}  c6 {[%clk 0:03:01]} 4. Be3 {[%clk 0:02:41]}  d5 {[%clk 0:02:59]} 5. e5 {[%clk 0:02:41]}  h5 {[%clk 0:02:59]} 6. Qd2 {[%clk 0:02:40]}  Nh6 {[%clk 0:02:58]} 7. O-O-O {[%clk 0:02:41]}  Nf5 {[%clk 0:02:58]} 8. Bf4 {[%clk 0:02:40]}  b5 {[%clk 0:02:51]} 9. Kb1 {[%clk 0:02:39]}  a5 {[%clk 0:02:50]} 10. f3 {[%clk 0:02:38]}  a4 {[%clk 0:02:43]} 11. a3 {[%clk 0:02:34]}  Qb6 {[%clk 0:02:42]} 12. Na2 {[%clk 0:02:28]}  Na6 {[%clk 0:02:42]} 13. Ne2 {[%clk 0:02:23]}  Rb8 {[%clk 0:02:38]} 14. c3 {[%clk 0:02:17]}  Be6 {[%clk 0:02:37]} 15. Nec1 {[%clk 0:02:16]}  c5 {[%clk 0:02:35]} 16. dxc5 {[%clk 0:02:14]}  Nxc5 {[%clk 0:02:32]} 17. Nb4 {[%clk 0:02:12]}  O-O {[%clk 0:02:31]} 18. g4 {[%clk 0:02:10]}  hxg4 {[%clk 0:02:30]} 19. fxg4 {[%clk 0:02:11]}  Ne4 {[%clk 0:02:28]} 20. Qe2 {[%clk 0:02:05]}  Nh6 {[%clk 0:02:21]} 21. Be3 {[%clk 0:01:30]}  Qc7 {[%clk 0:02:15]} 22. Nxd5 {[%clk 0:01:25]}  Qxe5 {[%clk 0:02:08]} 23. Nxe7+ {[%clk 0:01:21]}  Kh7 {[%clk 0:02:07]} 24. Bd4 {[%clk 0:01:20]}  Qf4 {[%clk 0:01:59]} 25. Bxg7 {[%clk 0:01:10]}  Kxg7 {[%clk 0:01:57]} 26. Rd4 {[%clk 0:01:06]}  Nxc3+ {[%clk 0:01:39]} 27. bxc3 {[%clk 0:01:04]}  Qc7 {[%clk 0:01:40]} 28. Nd5 {[%clk 0:01:00]}  Bxd5 {[%clk 0:01:33]} 29. Rxd5 {[%clk 0:01:01]}  Rfe8 {[%clk 0:01:33]} 30. Qb2 {[%clk 0:00:59]}  Nxg4 {[%clk 0:01:31]} 31. Bxb5 {[%clk 0:00:56]}  Ne3 {[%clk 0:01:28]} 32. c4+ {[%clk 0:00:50]}  Kg8 {[%clk 0:01:25]} 33. Rd7 {[%clk 0:00:48]}  Qf4 {[%clk 0:01:14]} 34. Qd4 {[%clk 0:00:29]}  Qf5+ {[%clk 0:01:06]} 35. Ka2 {[%clk 0:00:11]}  Qc2+ {[%clk 0:00:55]} 36. Qb2 {[%clk 0:00:12]}  Qf5 {[%clk 0:00:48]} 37. Rd4 {[%clk 0:00:07]}  Qe6 {[%clk 0:00:35]} 38. Re1 {[%clk 0:00:06]}  Qf6 {[%clk 0:00:23]} 39. Qd2 {[%clk 0:00:02]}  Nf1 {[%clk 0:00:13]} 40. Rxf1 {[%clk 0:00:02]}  Qxf1 {[%clk 0:00:12]} 41. Bxe8 {[%clk 0:00:02]}  Rxe8 {[%clk 0:00:12]} 42. Rd8 {[%clk 0:00:03]}  Rxd8 {[%clk 0:00:11]} 43. Qxd8+ {[%clk 0:00:04]}  Kh7 {[%clk 0:00:12]} 44. Qd2 {[%clk 0:00:04]}  Qxc4+ {[%clk 0:00:11]} 45. Kb2 {[%clk 0:00:05]}  f5 {[%clk 0:00:11]} 46. Qc3 {[%clk 0:00:05]}  Qe4 {[%clk 0:00:11]} 47. Qc2 {[%clk 0:00:05]}  Qe5+ {[%clk 0:00:10]} 48. Qc3 {[%clk 0:00:06]}  Qxh2+ {[%clk 0:00:11]} 49. Qc2 {[%clk 0:00:05]}  Qe5+ {[%clk 0:00:11]} 50. Qc3 {[%clk 0:00:06]}  Qh2+ {[%clk 0:00:11]} 51. Qc2 {[%clk 0:00:06]}  Qb8+ {[%clk 0:00:12]} 52. Kc3 {[%clk 0:00:06]}  f4 {[%clk 0:00:12]} 53. Kd3 {[%clk 0:00:07]}  Qe5 {[%clk 0:00:12]} 54. Qe2 {[%clk 0:00:06]}  Qf5+ {[%clk 0:00:12]} 55. Kd2 {[%clk 0:00:06]}  f3 {[%clk 0:00:12]} 56. Qf2 {[%clk 0:00:06]}  g5 {[%clk 0:00:12]} 57. Nd3 {[%clk 0:00:07]}  g4 {[%clk 0:00:13]} 58. Ke3 {[%clk 0:00:08]}  Qg5+ {[%clk 0:00:13]} 59. Nf4 {[%clk 0:00:07]}  Qe5+ {[%clk 0:00:13]} 60. Kd3 {[%clk 0:00:08]}  Qxf4 {[%clk 0:00:13]} 61. Qh4+ {[%clk 0:00:09]}  Kg6 {[%clk 0:00:14]} 62. Qe7 {[%clk 0:00:09]}  Qf5+ {[%clk 0:00:14]} 63. Ke3 {[%clk 0:00:09]}  Qg5+ {[%clk 0:00:14]} 64. Qxg5+ {[%clk 0:00:08]}  Kxg5 {[%clk 0:00:15]} 0-1


[Site "https://www.chess.com"]

[Event "Titled Tuesday Blitz May 9 Early 2023"]
[White "bubeliang"]
[Black "Panda Sambit"]
[BlackFideId "25091794"]
[WhiteElo "2641"]
[BlackElo "2272"]
[Result "1-0"]
[Round "07"]
[TimeControl "180+2"]
[Date "2023.05.09"]
[WhiteClock "0:01:34"]
[BlackClock "0:00:06"]

1. e4 {[%clk 0:03:00]}  c6 {[%clk 0:02:46]} 2. c4 {[%clk 0:02:59]}  d5 {[%clk 0:02:45]} 3. cxd5 {[%clk 0:03:00]}  cxd5 {[%clk 0:02:46]} 4. exd5 {[%clk 0:03:01]}  Nf6 {[%clk 0:02:45]} 5. Nc3 {[%clk 0:03:00]}  Nxd5 {[%clk 0:02:46]} 6. Nf3 {[%clk 0:03:00]}  Nc6 {[%clk 0:02:46]} 7. d4 {[%clk 0:03:00]}  g6 {[%clk 0:02:42]} 8. h4 {[%clk 0:02:56]}  Bg4 {[%clk 0:02:09]} 9. Bc4 {[%clk 0:02:53]}  Nf6 {[%clk 0:01:40]} 10. d5 {[%clk 0:02:50]}  Ne5 {[%clk 0:01:33]} 11. Nxe5 {[%clk 0:02:44]}  Bxd1 {[%clk 0:01:30]} 12. Bb5+ {[%clk 0:02:44]}  Nd7 {[%clk 0:01:30]} 13. Bxd7+ {[%clk 0:02:44]}  Qxd7 {[%clk 0:01:30]} 14. Nxd7 {[%clk 0:02:45]}  Bg4 {[%clk 0:01:26]} 15. Ne5 {[%clk 0:02:44]}  Bf5 {[%clk 0:01:25]} 16. g4 {[%clk 0:02:44]}  Bc8 {[%clk 0:01:22]} 17. O-O {[%clk 0:02:43]}  f6 {[%clk 0:01:19]} 18. Nd3 {[%clk 0:02:39]}  Bxg4 {[%clk 0:01:19]} 19. Nc5 {[%clk 0:02:38]}  e5 {[%clk 0:01:08]} 20. Ne6 {[%clk 0:02:29]}  Bd6 {[%clk 0:00:50]} 21. f3 {[%clk 0:02:01]}  Bh3 {[%clk 0:00:46]} 22. Rd1 {[%clk 0:01:59]}  Kd7 {[%clk 0:00:39]} 23. Ne4 {[%clk 0:01:52]}  Be7 {[%clk 0:00:29]} 24. N4c5+ {[%clk 0:01:48]}  Bxc5+ {[%clk 0:00:14]} 25. Nxc5+ {[%clk 0:01:49]}  Ke7 {[%clk 0:00:14]} 26. d6+ {[%clk 0:01:48]}  Kf7 {[%clk 0:00:14]} 27. Be3 {[%clk 0:01:45]}  b6 {[%clk 0:00:13]} 28. Nb3 {[%clk 0:01:41]}  Bd7 {[%clk 0:00:12]} 29. Rac1 {[%clk 0:01:41]}  Rac8 {[%clk 0:00:12]} 30. Kf2 {[%clk 0:01:41]}  Rhd8 {[%clk 0:00:10]} 31. Rc7 {[%clk 0:01:40]}  Ke6 {[%clk 0:00:09]} 32. Rxa7 {[%clk 0:01:36]}  Rc2+ {[%clk 0:00:09]} 33. Rd2 {[%clk 0:01:36]}  Rxd2+ {[%clk 0:00:10]} 34. Nxd2 {[%clk 0:01:36]}  b5 {[%clk 0:00:09]} 35. Ne4 {[%clk 0:01:35]}  Bc6 {[%clk 0:00:06]} 36. Re7+ {[%clk 0:01:34]}  Kf5 {[%clk 0:00:06]} 37. Ng3# {[%clk 0:01:34]} 1-0


[Site "https://www.chess.com"]

[Event "Titled Tuesday Blitz May 9 Early 2023"]
[White "Avazkhonov, Alikhon"]
[Black "Guerra Tulcan, Lenin"]
[WhiteFideId "14208504"]
[BlackFideId "3601382"]
[WhiteElo "1739"]
[BlackElo "2368"]
[Result "0-1"]
[Round "07"]
[TimeControl "180+2"]
[Date "2023.05.09"]
[WhiteClock "0:00:00"]
[BlackClock "0:00:18"]

1. d4 {[%clk 0:03:00]}  Nf6 {[%clk 0:02:58]} 2. c4 {[%clk 0:03:00]}  c5 {[%clk 0:02:57]} 3. d5 {[%clk 0:02:38]}  b5 {[%clk 0:02:56]} 4. cxb5 {[%clk 0:02:38]}  a6 {[%clk 0:02:55]} 5. e3 {[%clk 0:02:38]}  axb5 {[%clk 0:02:54]} 6. Bxb5 {[%clk 0:02:38]}  Ba6 {[%clk 0:02:52]} 7. Bxa6 {[%clk 0:02:14]}  Rxa6 {[%clk 0:02:50]} 8. Nc3 {[%clk 0:02:15]}  g6 {[%clk 0:02:49]} 9. Nf3 {[%clk 0:02:15]}  Bg7 {[%clk 0:02:46]} 10. O-O {[%clk 0:02:16]}  O-O {[%clk 0:02:44]} 11. e4 {[%clk 0:02:16]}  d6 {[%clk 0:02:44]} 12. Qd3 {[%clk 0:02:12]}  Qb6 {[%clk 0:02:35]} 13. a4 {[%clk 0:02:10]}  Nbd7 {[%clk 0:02:34]} 14. Bg5 {[%clk 0:01:58]}  h6 {[%clk 0:02:33]} 15. Bxf6 {[%clk 0:01:55]}  Bxf6 {[%clk 0:02:29]} 16. b3 {[%clk 0:01:43]}  Rfa8 {[%clk 0:02:26]} 17. Rab1 {[%clk 0:01:41]}  Qb4 {[%clk 0:02:10]} 18. Nb5 {[%clk 0:01:41]}  Rb6 {[%clk 0:01:57]} 19. Rfc1 {[%clk 0:01:40]}  Rab8 {[%clk 0:01:43]} 20. h3 {[%clk 0:01:13]}  Qa5 {[%clk 0:01:35]} 21. Qe3 {[%clk 0:01:12]}  Kg7 {[%clk 0:01:33]} 22. Nd2 {[%clk 0:01:13]}  Rxb5 {[%clk 0:01:26]} 23. axb5 {[%clk 0:01:11]}  Rxb5 {[%clk 0:01:27]} 24. Nc4 {[%clk 0:01:10]}  Qa2 {[%clk 0:01:26]} 25. Qd2 {[%clk 0:01:09]}  Qa6 {[%clk 0:01:18]} 26. f4 {[%clk 0:01:06]}  Bd4+ {[%clk 0:01:17]} 27. Kh2 {[%clk 0:01:06]}  Nb6 {[%clk 0:01:17]} 28. b4 {[%clk 0:00:57]}  Nxc4 {[%clk 0:00:58]} 29. Rxc4 {[%clk 0:00:47]}  Bf6 {[%clk 0:00:54]} 30. e5 {[%clk 0:00:20]}  dxe5 {[%clk 0:00:52]} 31. Rxc5 {[%clk 0:00:20]}  Qb6 {[%clk 0:00:45]} 32. Rxb5 {[%clk 0:00:20]}  Qxb5 {[%clk 0:00:46]} 33. fxe5 {[%clk 0:00:06]}  Bxe5+ {[%clk 0:00:46]} 34. Kh1 {[%clk 0:00:07]}  Bd6 {[%clk 0:00:46]} 35. Qe3 {[%clk 0:00:05]}  f6 {[%clk 0:00:42]} 36. Qd4 {[%clk 0:00:05]}  h5 {[%clk 0:00:41]} 37. Rc1 {[%clk 0:00:03]}  Qxb4 {[%clk 0:00:39]} 38. Qxb4 {[%clk 0:00:03]}  Bxb4 {[%clk 0:00:39]} 39. Rc7 {[%clk 0:00:03]}  Bd6 {[%clk 0:00:40]} 40. Rd7 {[%clk 0:00:02]}  f5 {[%clk 0:00:39]} 41. Ra7 {[%clk 0:00:02]}  Kf6 {[%clk 0:00:40]} 42. Kg1 {[%clk 0:00:02]}  Ke5 {[%clk 0:00:40]} 43. Ra5 {[%clk 0:00:02]}  Kd4 {[%clk 0:00:40]} 44. Kf2 {[%clk 0:00:03]}  Bc5 {[%clk 0:00:40]} 45. Kf3 {[%clk 0:00:03]}  g5 {[%clk 0:00:36]} 46. g4 {[%clk 0:00:03]}  hxg4+ {[%clk 0:00:35]} 47. hxg4 {[%clk 0:00:04]}  f4 {[%clk 0:00:35]} 48. Ra6 {[%clk 0:00:03]}  Bd6 {[%clk 0:00:33]} 49. Ra5 {[%clk 0:00:03]}  Ke5 {[%clk 0:00:33]} 50. Rb5 {[%clk 0:00:02]}  Kd4 {[%clk 0:00:33]} 51. Ra5 {[%clk 0:00:01]}  Kc4 {[%clk 0:00:34]} 52. Ra8 {[%clk 0:00:01]}  Be5 {[%clk 0:00:32]} 53. Rg8 {[%clk 0:00:02]}  Bf6 {[%clk 0:00:31]} 54. Rd8 {[%clk 0:00:03]}  Kc5 {[%clk 0:00:31]} 55. Rd7 {[%clk 0:00:03]}  Kd4 {[%clk 0:00:30]} 56. Rd8 {[%clk 0:00:01]}  Ke5 {[%clk 0:00:30]} 57. Rd7 {[%clk 0:00:02]}  Kd4 {[%clk 0:00:30]} 58. d6 {[%clk 0:00:02]}  exd6 {[%clk 0:00:29]} 59. Rxd6+ {[%clk 0:00:03]}  Ke5 {[%clk 0:00:29]} 60. Ra6 {[%clk 0:00:04]}  Be7 {[%clk 0:00:29]} 61. Ra5+ {[%clk 0:00:04]}  Kd4 {[%clk 0:00:19]} 62. Ra4+ {[%clk 0:00:04]}  Ke5 {[%clk 0:00:19]} 63. Rb4 {[%clk 0:00:00]}  Bxb4 {[%clk 0:00:18]} 0-1


[Site "https://www.chess.com"]

[Event "Titled Tuesday Blitz May 9 Early 2023"]
[White "Ambartsumova, Karina"]
[Black "Redzisz, Michal"]
[WhiteFideId "4166299"]
[BlackFideId "21816107"]
[WhiteElo "2240"]
[BlackElo "2175"]
[Result "1-0"]
[Round "07"]
[TimeControl "180+2"]
[Date "2023.05.09"]
[WhiteClock "0:00:08"]
[BlackClock "0:00:00"]

1. e4 {[%clk 0:03:00]}  c5 {[%clk 0:02:55]} 2. Nf3 {[%clk 0:03:00]}  d6 {[%clk 0:02:56]} 3. Bb5+ {[%clk 0:02:59]}  Bd7 {[%clk 0:02:54]} 4. Bxd7+ {[%clk 0:02:59]}  Qxd7 {[%clk 0:02:55]} 5. c3 {[%clk 0:02:59]}  d5 {[%clk 0:02:55]} 6. e5 {[%clk 0:02:59]}  d4 {[%clk 0:02:52]} 7. O-O {[%clk 0:02:59]}  Nc6 {[%clk 0:02:52]} 8. Na3 {[%clk 0:02:58]}  g6 {[%clk 0:02:43]} 9. cxd4 {[%clk 0:02:58]}  cxd4 {[%clk 0:02:43]} 10. d3 {[%clk 0:02:58]}  Bg7 {[%clk 0:02:42]} 11. Re1 {[%clk 0:02:58]}  Nh6 {[%clk 0:02:32]} 12. e6 {[%clk 0:02:50]}  fxe6 {[%clk 0:02:32]} 13. Bxh6 {[%clk 0:02:38]}  Bxh6 {[%clk 0:02:33]} 14. Qe2 {[%clk 0:02:39]}  O-O {[%clk 0:01:35]} 15. Qxe6+ {[%clk 0:02:38]}  Qxe6 {[%clk 0:01:35]} 16. Rxe6 {[%clk 0:02:39]}  Rf6 {[%clk 0:01:31]} 17. Re4 {[%clk 0:02:35]}  Rd8 {[%clk 0:01:24]} 18. Nc2 {[%clk 0:02:22]}  Rfd6 {[%clk 0:01:15]} 19. Rae1 {[%clk 0:02:16]}  Bg7 {[%clk 0:01:14]} 20. Re6 {[%clk 0:02:05]}  Rxe6 {[%clk 0:00:55]} 21. Rxe6 {[%clk 0:02:06]}  Bf6 {[%clk 0:00:55]} 22. b4 {[%clk 0:01:51]}  Kf7 {[%clk 0:00:52]} 23. Re4 {[%clk 0:01:51]}  b5 {[%clk 0:00:48]} 24. g4 {[%clk 0:01:50]}  e5 {[%clk 0:00:44]} 25. a3 {[%clk 0:01:44]}  Ke6 {[%clk 0:00:35]} 26. Kg2 {[%clk 0:01:40]}  Kd5 {[%clk 0:00:33]} 27. g5 {[%clk 0:01:24]}  Bg7 {[%clk 0:00:33]} 28. Rh4 {[%clk 0:01:24]}  Rh8 {[%clk 0:00:31]} 29. Nd2 {[%clk 0:01:15]}  Ne7 {[%clk 0:00:29]} 30. Ne4 {[%clk 0:01:10]}  Nf5 {[%clk 0:00:29]} 31. Rh3 {[%clk 0:01:11]}  Rc8 {[%clk 0:00:19]} 32. Na1 {[%clk 0:01:02]}  h5 {[%clk 0:00:18]} 33. gxh6 {[%clk 0:00:55]}  Bxh6 {[%clk 0:00:18]} 34. Nc5 {[%clk 0:00:56]}  Bf8 {[%clk 0:00:16]} 35. Rh8 {[%clk 0:00:55]}  Nd6 {[%clk 0:00:04]} 36. Nab3 {[%clk 0:00:54]}  Be7 {[%clk 0:00:04]} 37. Rh7 {[%clk 0:00:49]}  Re8 {[%clk 0:00:02]} 38. Rg7 {[%clk 0:00:44]}  e4 {[%clk 0:00:02]} 39. Rxg6 {[%clk 0:00:33]}  exd3 {[%clk 0:00:02]} 40. Nxd3 {[%clk 0:00:33]}  Kc4 {[%clk 0:00:03]} 41. Nbc5 {[%clk 0:00:32]}  Ne4 {[%clk 0:00:02]} 42. Rg4 {[%clk 0:00:18]}  Bxc5 {[%clk 0:00:02]} 43. Nxc5 {[%clk 0:00:16]}  Nxc5 {[%clk 0:00:02]} 44. bxc5 {[%clk 0:00:17]}  Kxc5 {[%clk 0:00:03]} 45. Rg7 {[%clk 0:00:12]}  Kc4 {[%clk 0:00:03]} 46. Rxa7 {[%clk 0:00:11]}  Rd8 {[%clk 0:00:03]} 47. Rc7+ {[%clk 0:00:11]}  Kb3 {[%clk 0:00:03]} 48. Kf1 {[%clk 0:00:11]}  d3 {[%clk 0:00:03]} 49. Ke1 {[%clk 0:00:12]}  d2+ {[%clk 0:00:04]} 50. Kd1 {[%clk 0:00:12]}  Kxa3 {[%clk 0:00:04]} 51. h4 {[%clk 0:00:12]}  b4 {[%clk 0:00:05]} 52. h5 {[%clk 0:00:11]}  b3 {[%clk 0:00:05]} 53. Ra7+ {[%clk 0:00:11]}  Kb4 {[%clk 0:00:05]} 54. Rb7+ {[%clk 0:00:11]}  Kc3 {[%clk 0:00:06]} 55. h6 {[%clk 0:00:11]}  b2 {[%clk 0:00:06]} 56. h7 {[%clk 0:00:11]}  Ra8 {[%clk 0:00:03]} 57. Rc7+ {[%clk 0:00:08]}  Kd3 {[%clk 0:00:04]} 58. Rd7+ {[%clk 0:00:08]}  Ke4 {[%clk 0:00:05]} 59. Kc2 {[%clk 0:00:07]}  Rb8 {[%clk 0:00:02]} 60. Kb1 {[%clk 0:00:08]}  Kf3 {[%clk 0:00:00]} 61. Rxd2 {[%clk 0:00:08]} 1-0


[Site "https://www.chess.com"]

[Event "Titled Tuesday Blitz May 9 Early 2023"]
[White "Jimenez Almeida, Luis David"]
[Black "brm72"]
[WhiteFideId "22242244"]
[WhiteElo "2245"]
[BlackElo "2582"]
[Result "1/2-1/2"]
[Round "07"]
[TimeControl "180+2"]
[Date "2023.05.09"]
[WhiteClock "0:00:12"]
[BlackClock "0:00:31"]

1. e4 {[%clk 0:03:00]}  c5 {[%clk 0:02:59]} 2. Nc3 {[%clk 0:03:00]}  Nc6 {[%clk 0:02:59]} 3. g3 {[%clk 0:03:00]}  d6 {[%clk 0:02:59]} 4. Bg2 {[%clk 0:03:00]}  g6 {[%clk 0:03:00]} 5. Nge2 {[%clk 0:02:59]}  Bg7 {[%clk 0:03:00]} 6. O-O {[%clk 0:02:59]}  e6 {[%clk 0:02:58]} 7. h3 {[%clk 0:02:59]}  Nge7 {[%clk 0:02:59]} 8. d3 {[%clk 0:02:59]}  O-O {[%clk 0:02:57]} 9. Be3 {[%clk 0:02:59]}  Rb8 {[%clk 0:02:56]} 10. a4 {[%clk 0:02:59]}  a6 {[%clk 0:02:56]} 11. Qd2 {[%clk 0:02:59]}  b5 {[%clk 0:02:55]} 12. axb5 {[%clk 0:03:00]}  axb5 {[%clk 0:02:55]} 13. Bh6 {[%clk 0:02:56]}  b4 {[%clk 0:02:54]} 14. Nd1 {[%clk 0:02:55]}  d5 {[%clk 0:02:44]} 15. Bxg7 {[%clk 0:02:50]}  Kxg7 {[%clk 0:02:43]} 16. Ne3 {[%clk 0:02:45]}  Bb7 {[%clk 0:02:31]} 17. Ng4 {[%clk 0:02:43]}  Ng8 {[%clk 0:02:28]} 18. Rae1 {[%clk 0:02:19]}  h5 {[%clk 0:02:27]} 19. Ne3 {[%clk 0:02:18]}  Nd4 {[%clk 0:02:17]} 20. exd5 {[%clk 0:02:04]}  Nxe2+ {[%clk 0:02:08]} 21. Rxe2 {[%clk 0:02:02]}  exd5 {[%clk 0:02:08]} 22. c4 {[%clk 0:01:55]}  Nf6 {[%clk 0:01:56]} 23. d4 {[%clk 0:01:43]}  dxc4 {[%clk 0:01:45]} 24. dxc5 {[%clk 0:01:34]}  Bxg2 {[%clk 0:01:42]} 25. Kxg2 {[%clk 0:01:31]}  Qc7 {[%clk 0:01:39]} 26. Qd4 {[%clk 0:01:25]}  Qc6+ {[%clk 0:01:31]} 27. Kh2 {[%clk 0:01:21]}  Rbc8 {[%clk 0:01:25]} 28. Rc1 {[%clk 0:00:48]}  Qxc5 {[%clk 0:01:13]} 29. Qxc5 {[%clk 0:00:47]}  Rxc5 {[%clk 0:01:14]} 30. Rxc4 {[%clk 0:00:48]}  Rfc8 {[%clk 0:01:10]} 31. Rec2 {[%clk 0:00:47]}  Rxc4 {[%clk 0:01:08]} 32. Rxc4 {[%clk 0:00:48]}  Rxc4 {[%clk 0:01:07]} 33. Nxc4 {[%clk 0:00:49]}  Ne4 {[%clk 0:01:07]} 34. Kg2 {[%clk 0:00:48]}  f5 {[%clk 0:01:05]} 35. Kf3 {[%clk 0:00:46]}  Kf6 {[%clk 0:01:05]} 36. Ke3 {[%clk 0:00:46]}  Ke6 {[%clk 0:01:04]} 37. g4 {[%clk 0:00:40]}  hxg4 {[%clk 0:00:54]} 38. hxg4 {[%clk 0:00:41]}  Kd5 {[%clk 0:00:54]} 39. gxf5 {[%clk 0:00:40]}  gxf5 {[%clk 0:00:53]} 40. Nb6+ {[%clk 0:00:37]}  Kc5 {[%clk 0:00:52]} 41. f3 {[%clk 0:00:27]}  Nd6 {[%clk 0:00:47]} 42. Nd7+ {[%clk 0:00:26]}  Kc4 {[%clk 0:00:46]} 43. Kf4 {[%clk 0:00:25]}  Kb3 {[%clk 0:00:43]} 44. Ke5 {[%clk 0:00:25]}  Nc4+ {[%clk 0:00:41]} 45. Kxf5 {[%clk 0:00:24]}  Nxb2 {[%clk 0:00:37]} 46. Ke4 {[%clk 0:00:21]}  Kc3 {[%clk 0:00:33]} 47. f4 {[%clk 0:00:15]}  Nc4 {[%clk 0:00:34]} 48. f5 {[%clk 0:00:13]}  Nd6+ {[%clk 0:00:34]} 49. Ke5 {[%clk 0:00:13]}  Nxf5 {[%clk 0:00:34]} 50. Kxf5 {[%clk 0:00:13]}  Kd4 {[%clk 0:00:31]} 51. Nb6 {[%clk 0:00:11]}  b3 {[%clk 0:00:29]} 52. Na4 {[%clk 0:00:12]}  Kc4 {[%clk 0:00:30]} 53. Ke4 {[%clk 0:00:12]}  Kb4 {[%clk 0:00:30]} 54. Nb2 {[%clk 0:00:12]}  Kc3 {[%clk 0:00:30]} 55. Na4+ {[%clk 0:00:12]}  Kb4 {[%clk 0:00:31]} 56. Nb2 {[%clk 0:00:12]}  Kc3 {[%clk 0:00:31]} 57. Na4+ {[%clk 0:00:12]}  Kb4 {[%clk 0:00:31]} 1/2-1/2


[Site "https://www.chess.com"]

[Event "Titled Tuesday Blitz May 9 Early 2023"]
[White "Spitzl, Vinzent"]
[Black "Golubev, Mikhail"]
[WhiteFideId "12901253"]
[BlackFideId "14100983"]
[WhiteElo "2225"]
[BlackElo "2374"]
[Result "0-1"]
[Round "07"]
[TimeControl "180+2"]
[Date "2023.05.09"]
[WhiteClock "0:00:02"]
[BlackClock "0:00:04"]

1. e4 {[%clk 0:03:00]}  c5 {[%clk 0:02:59]} 2. Nf3 {[%clk 0:02:58]}  d6 {[%clk 0:02:58]} 3. d4 {[%clk 0:02:58]}  cxd4 {[%clk 0:02:59]} 4. Nxd4 {[%clk 0:02:59]}  Nf6 {[%clk 0:02:59]} 5. Nc3 {[%clk 0:02:59]}  g6 {[%clk 0:02:59]} 6. Be3 {[%clk 0:02:59]}  Bg7 {[%clk 0:02:59]} 7. f3 {[%clk 0:03:00]}  a6 {[%clk 0:02:59]} 8. Bc4 {[%clk 0:02:56]}  Nbd7 {[%clk 0:02:51]} 9. O-O {[%clk 0:02:55]}  O-O {[%clk 0:02:44]} 10. Qd2 {[%clk 0:02:55]}  Qc7 {[%clk 0:02:39]} 11. Bb3 {[%clk 0:02:55]}  b5 {[%clk 0:02:25]} 12. Rfd1 {[%clk 0:02:53]}  Bb7 {[%clk 0:02:24]} 13. a4 {[%clk 0:02:42]}  b4 {[%clk 0:02:22]} 14. Nd5 {[%clk 0:02:40]}  Nxd5 {[%clk 0:02:21]} 15. exd5 {[%clk 0:02:38]}  Nb6 {[%clk 0:02:02]} 16. Qxb4 {[%clk 0:02:29]}  Nxd5 {[%clk 0:01:58]} 17. Bxd5 {[%clk 0:02:27]}  Bxd5 {[%clk 0:01:59]} 18. Qd2 {[%clk 0:02:21]}  Rfc8 {[%clk 0:01:47]} 19. Rac1 {[%clk 0:02:17]}  Rab8 {[%clk 0:01:41]} 20. b3 {[%clk 0:02:05]}  Qc3 {[%clk 0:01:41]} 21. Qf2 {[%clk 0:02:05]}  Bb7 {[%clk 0:01:26]} 22. Ne2 {[%clk 0:02:05]}  Qc6 {[%clk 0:01:23]} 23. c4 {[%clk 0:01:58]}  e5 {[%clk 0:01:22]} 24. Nc3 {[%clk 0:01:53]}  Ba8 {[%clk 0:01:12]} 25. Rb1 {[%clk 0:01:51]}  Rb7 {[%clk 0:00:58]} 26. Nd5 {[%clk 0:01:47]}  Qe8 {[%clk 0:00:53]} 27. Nb6 {[%clk 0:01:40]}  Rc6 {[%clk 0:00:52]} 28. Rd2 {[%clk 0:01:32]}  f5 {[%clk 0:00:24]} 29. f4 {[%clk 0:01:27]}  exf4 {[%clk 0:00:23]} 30. Qxf4 {[%clk 0:01:19]}  Rcxb6 {[%clk 0:00:22]} 31. Bxb6 {[%clk 0:01:16]}  Rxb6 {[%clk 0:00:23]} 32. Qf2 {[%clk 0:01:08]}  Qc6 {[%clk 0:00:21]} 33. Rbd1 {[%clk 0:01:04]}  Qc7 {[%clk 0:00:17]} 34. Qg3 {[%clk 0:01:00]}  Be5 {[%clk 0:00:17]} 35. Qd3 {[%clk 0:00:57]}  Qc5+ {[%clk 0:00:16]} 36. Kh1 {[%clk 0:00:56]}  a5 {[%clk 0:00:16]} 37. Qh3 {[%clk 0:00:50]}  Rb8 {[%clk 0:00:15]} 38. Qh4 {[%clk 0:00:46]}  Rf8 {[%clk 0:00:15]} 39. Qg5 {[%clk 0:00:42]}  f4 {[%clk 0:00:13]} 40. Rd5 {[%clk 0:00:16]}  Bxd5 {[%clk 0:00:12]} 41. Rxd5 {[%clk 0:00:17]}  Qe3 {[%clk 0:00:10]} 42. Rd1 {[%clk 0:00:17]}  Qe2 {[%clk 0:00:10]} 43. Rb1 {[%clk 0:00:14]}  f3 {[%clk 0:00:10]} 44. gxf3 {[%clk 0:00:14]}  Qxf3+ {[%clk 0:00:08]} 45. Qg2 {[%clk 0:00:14]}  Qxg2+ {[%clk 0:00:08]} 46. Kxg2 {[%clk 0:00:15]}  Rb8 {[%clk 0:00:08]} 47. Kf3 {[%clk 0:00:14]}  Kf7 {[%clk 0:00:08]} 48. h3 {[%clk 0:00:13]}  Ke6 {[%clk 0:00:08]} 49. Ke3 {[%clk 0:00:12]}  h5 {[%clk 0:00:08]} 50. Ke4 {[%clk 0:00:12]}  Rf8 {[%clk 0:00:07]} 51. b4 {[%clk 0:00:11]}  Rf4+ {[%clk 0:00:06]} 52. Kd3 {[%clk 0:00:11]}  Rd4+ {[%clk 0:00:06]} 53. Ke3 {[%clk 0:00:10]}  Rxc4 {[%clk 0:00:06]} 54. b5 {[%clk 0:00:07]}  Rb4 {[%clk 0:00:05]} 55. Rg1 {[%clk 0:00:05]}  Bd4+ {[%clk 0:00:03]} 56. Kd3 {[%clk 0:00:02]}  Bxg1 {[%clk 0:00:04]} 0-1


[Site "https://www.chess.com"]

[Event "Titled Tuesday Blitz May 9 Early 2023"]
[White "Garakov, Mikhael"]
[Black "Lorenzo De La Riva, Lazaro"]
[WhiteFideId "4169034"]
[BlackFideId "2268809"]
[WhiteElo "2347"]
[BlackElo "2294"]
[Result "1-0"]
[Round "07"]
[TimeControl "180+2"]
[Date "2023.05.09"]
[WhiteClock "0:00:05"]
[BlackClock "0:01:41"]

1. e4 {[%clk 0:03:00]}  c5 {[%clk 0:02:58]} 2. Nf3 {[%clk 0:02:59]}  Nc6 {[%clk 0:02:56]} 3. Bb5 {[%clk 0:02:58]}  e5 {[%clk 0:02:55]} 4. c3 {[%clk 0:02:44]}  Bd6 {[%clk 0:02:51]} 5. d4 {[%clk 0:02:33]}  cxd4 {[%clk 0:02:52]} 6. cxd4 {[%clk 0:02:32]}  exd4 {[%clk 0:02:51]} 7. Nxd4 {[%clk 0:02:28]}  Nge7 {[%clk 0:02:51]} 8. Nc3 {[%clk 0:02:08]}  O-O {[%clk 0:02:45]} 9. O-O {[%clk 0:02:00]}  Qc7 {[%clk 0:02:43]} 10. h3 {[%clk 0:01:53]}  Ng6 {[%clk 0:02:39]} 11. Nf5 {[%clk 0:01:40]}  Bc5 {[%clk 0:02:37]} 12. Nd5 {[%clk 0:01:31]}  Qd8 {[%clk 0:02:35]} 13. a3 {[%clk 0:01:15]}  a6 {[%clk 0:02:34]} 14. Ba4 {[%clk 0:01:12]}  b5 {[%clk 0:02:34]} 15. Bc2 {[%clk 0:01:12]}  Bb7 {[%clk 0:02:32]} 16. b4 {[%clk 0:01:12]}  Ba7 {[%clk 0:02:32]} 17. Bb2 {[%clk 0:01:12]}  Nge5 {[%clk 0:02:23]} 18. Kh1 {[%clk 0:01:05]}  f6 {[%clk 0:02:20]} 19. f4 {[%clk 0:00:59]}  Nc4 {[%clk 0:02:20]} 20. Qg4 {[%clk 0:00:53]}  Rf7 {[%clk 0:02:07]} 21. Nh6+ {[%clk 0:00:51]}  Kf8 {[%clk 0:02:07]} 22. Nxf7 {[%clk 0:00:49]}  Kxf7 {[%clk 0:02:08]} 23. Qh5+ {[%clk 0:00:40]}  Kg8 {[%clk 0:02:07]} 24. e5 {[%clk 0:00:40]}  Nxb2 {[%clk 0:02:06]} 25. Qxh7+ {[%clk 0:00:36]}  Kf7 {[%clk 0:02:04]} 26. Qh5+ {[%clk 0:00:16]}  Ke6 {[%clk 0:02:00]} 27. exf6 {[%clk 0:00:16]}  Nd4 {[%clk 0:01:55]} 28. Qe5+ {[%clk 0:00:14]}  Kf7 {[%clk 0:01:55]} 29. Bg6+ {[%clk 0:00:09]}  Kxg6 {[%clk 0:01:54]} 30. Qg5+ {[%clk 0:00:08]}  Kf7 {[%clk 0:01:55]} 31. Qxg7+ {[%clk 0:00:08]}  Ke6 {[%clk 0:01:55]} 32. Ne3 {[%clk 0:00:07]}  Qf8 {[%clk 0:01:50]} 33. Qg4+ {[%clk 0:00:06]}  Kd6 {[%clk 0:01:50]} 34. f5 {[%clk 0:00:05]}  Qg8 {[%clk 0:01:45]} 35. Qf4+ {[%clk 0:00:05]}  Kc6 {[%clk 0:01:45]} 36. Rac1+ {[%clk 0:00:06]}  Kb6 {[%clk 0:01:41]} 37. Qxd4# {[%clk 0:00:05]} 1-0


[Site "https://www.chess.com"]